bitfinex/quotes_BTCUSD_20250221
["timestamp","ask_amount","ask_price","bid_price","bid_amount"]
[1740129897526,0.00306312,98803.0,98802.0,0.151818]
[1740129897728,0.3085106,98805.0,98804.0,0.151815]
[1740129898487,0.31157392,98805.0,98804.0,0.151815]
[1740129900697,0.31157392,98805.0,98802.0,0.151818]
[1740129900901,0.31157392,98805.0,98799.0,0.151822]
[1740129901092,0.31157392,98805.0,98785.0,0.151844]
[1740129901093,0.151829,98796.0,98785.0,0.151844]
[1740129901312,0.151829,98795.0,98785.0,0.151844]
[1740129901516,0.00306312,98795.0,98786.0,0.14295704]
[1740129901927,0.151821,98801.0,98792.0,0.151833]
[1740129902138,0.10264569,98801.0,98793.0,0.151832]
[1740129902341,0.151823,98799.0,98786.0,0.14295704]
[1740129902551,0.00306339,98800.0,98789.0,0.202451]
[1740129902754,0.00306245,98798.0,98796.0,0.151827]
[1740129902970,0.00306333,98799.0,98798.0,0.151824]
[1740129903162,0.3085106,98805.0,98804.0,0.151815]
[1740129904759,0.3085106,98805.0,98796.0,0.202436]
[1740129905101,0.3085106,98805.0,98803.0,0.151816]
[1740129912760,0.3085106,98805.0,98803.0,0.151815]
[1740129912935,0.3085106,98805.0,98785.0,0.0754]
[1740129912936,0.151819,98802.0,98785.0,0.0754]
[1740129913159,0.3085106,98805.0,98790.0,0.14295704]
[1740129913365,0.00307102,98801.0,98798.0,0.151824]
[1740129913592,0.3085106,98805.0,98790.0,0.14295704]
[1740129913821,0.00307109,98800.0,98798.0,0.151824]
[1740129914032,0.3085106,98805.0,98795.0,0.202439]
[1740129914181,0.00307149,98804.0,98790.0,0.14295704]
[1740129914380,0.00307109,98799.0,98792.0,0.202445]
[1740129914586,0.3085106,98805.0,98800.0,0.151821]
[1740129914749,0.3085106,98805.0,98798.0,0.151824]
[1740129914951,0.00307122,98804.0,98798.0,0.151824]
[1740129915155,0.00307122,98804.0,98793.0,0.202442]
[1740129915399,0.00307122,98804.0,98795.0,0.151829]
[1740129916419,0.151829,98795.0,98780.0,0.14295704]
[1740129916627,0.0803,98802.0,98785.0,0.151844]
[1740129916764,0.151824,98799.0,98780.0,0.14295704]
[1740129916969,0.10264569,98801.0,98780.0,0.14295704]
[1740129917171,0.10264569,98801.0,98769.0,0.0821]
[1740129917172,0.46255358,98800.0,98790.0,0.14295704]
[1740129917432,0.31073158,98800.0,98790.0,0.14295704]
[1740129917584,0.31073158,98800.0,98780.0,0.14295704]
[1740129917783,0.202433,98798.0,98780.0,0.14295704]
[1740129918044,0.00307217,98797.0,98780.0,0.14295704]
[1740129918214,0.00307217,98797.0,98772.0,0.0016608]
[1740129918215,0.151849,98782.0,98772.0,0.0016608]
[1740129918421,0.15185,98782.0,98772.0,0.0016608]
[1740129918647,0.00306489,98781.0,98772.0,0.0016608]
[1740129919097,0.151846,98784.0,98772.0,0.0016608]
[1740129919302,0.202437,98796.0,98772.0,0.0016608]
[1740129919303,0.00306482,98780.0,98772.0,0.0016608]
[1740129919510,0.202437,98796.0,98772.0,0.0016608]
[1740129919727,0.00306476,98779.0,98772.0,0.0016608]
[1740129919950,0.10264569,98795.0,98772.0,0.0016608]
[1740129920160,0.151863,98773.0,98772.0,0.0016608]
[1740129920579,0.15492395,98773.0,98772.0,0.0016608]
[1740129920795,0.00306095,98773.0,98772.0,0.0016608]
[1740129921635,0.15492395,98773.0,98772.0,0.0016608]
[1740129922221,0.00306095,98773.0,98772.0,0.0016608]
[1740129922565,0.15492395,98773.0,98772.0,0.0016608]
[1740129923945,0.25756964,98773.0,98772.0,0.0016608]
[1740129926189,0.56522964,98773.0,98772.0,0.0016608]
[1740129926393,0.56522964,98773.0,98772.0,0.0016208]
[1740129926747,0.61392964,98773.0,98772.0,0.0016208]
[1740129929305,0.76392964,98773.0,98772.0,0.0016208]
[1740129930283,0.84702964,98773.0,98772.0,0.0016208]
[1740129931125,0.87851121,98773.0,98772.0,0.0016208]
[1740129931377,0.84702964,98773.0,98772.0,0.0016208]
[1740129931533,0.87849707,98773.0,98772.0,0.0016208]
[1740129931736,0.87379495,98773.0,98772.0,0.0016208]
[1740129931949,0.301887,98757.0,98756.0,0.00016196]
[1740129932145,0.47963269,98757.0,98756.0,0.00016196]
[1740129932357,0.79019055,98757.0,98756.0,0.00016196]
[1740129932562,0.83749055,98757.0,98756.0,0.00016196]
[1740129935124,0.83749055,98757.0,98756.0,9.6e-07]
[1740129935476,0.90194511,98757.0,98756.0,9.6e-07]
[1740129937115,0.86493785,98757.0,98756.0,9.6e-07]
[1740129939546,0.84493785,98757.0,98756.0,9.6e-07]
[1740129939753,0.86493785,98757.0,98756.0,9.6e-07]
[1740129940569,0.301895,98752.0,98751.0,9.6e-07]
[1740129940792,0.79390069,98752.0,98751.0,9.6e-07]
[1740129941036,0.79636936,98752.0,98751.0,9.6e-07]
[1740129941886,0.80664936,98752.0,98751.0,9.6e-07]
[1740129948906,0.301906,98745.0,98744.0,5.6e-07]
[1740129949137,0.40455169,98745.0,98744.0,5.6e-07]
[1740129949475,0.40700645,98745.0,98744.0,5.6e-07]
[1740129949615,0.79506645,98745.0,98744.0,5.6e-07]
[1740129949794,0.84206645,98745.0,98744.0,5.6e-07]
[1740129951199,0.84206645,98745.0,98730.0,7e-05]
[1740129951200,0.15,98744.0,98743.0,9.6e-07]
[1740129951392,0.40455269,98744.0,98743.0,9.6e-07]
[1740129951569,0.41645786,98744.0,98743.0,9.6e-07]
[1740129951771,0.72411786,98744.0,98743.0,9.6e-07]
[1740129952494,0.75557371,98744.0,98743.0,9.6e-07]
[1740129952701,0.81320862,98744.0,98743.0,9.6e-07]
[1740129953413,0.75557371,98744.0,98743.0,9.6e-07]
[1740129953902,0.79258097,98744.0,98743.0,9.6e-07]
[1740129956338,0.75557371,98744.0,98743.0,9.6e-07]
[1740129957928,0.02,98740.0,98732.0,1.6e-07]
[1740129958129,0.48736969,98733.0,98732.0,1.6e-07]
[1740129958334,0.82648554,98733.0,98732.0,1.6e-07]
[1740129958686,0.82892827,98733.0,98732.0,1.6e-07]
[1740129959372,0.82892827,98733.0,98730.0,7e-05]
[1740129959373,0.301927,98731.0,98730.0,1.6e-07]
[1740129959588,0.74368854,98731.0,98730.0,1.6e-07]
[1740129959734,0.79323046,98731.0,98730.0,1.6e-07]
[1740129960567,0.81323046,98731.0,98730.0,1.6e-07]
[1740129960770,0.93448937,98731.0,98730.0,1.6e-07]
[1740129961111,1.01508937,98731.0,98730.0,1.6e-07]
[1740129961446,0.301957,98712.0,98711.0,0.0002]
[1740129961656,0.44601854,98712.0,98711.0,0.0002]
[1740129961867,0.15198,98697.0,98696.0,0.0149946]
[1740129962190,0.74383288,98697.0,98696.0,0.0149946]
[1740129962366,0.74383288,98697.0,98677.0,0.03009416]
[1740129962367,0.152009,98678.0,98677.0,0.03009416]
[1740129962572,0.152009,98678.0,98646.0,0.2924559]
[1740129962573,0.152015,98674.0,98655.0,0.0827]
[1740129962778,0.57207268,98674.0,98655.0,0.0827]
[1740129962987,0.57462916,98674.0,98661.0,0.00597564]
[1740129963187,0.72462916,98674.0,98661.0,0.00597564]
[1740129964190,0.72479717,98674.0,98661.0,0.00597564]
[1740129964591,0.56286217,98674.0,98650.0,0.14295704]
[1740129964947,0.71487717,98674.0,98659.0,0.0797]
[1740129965311,0.71487717,98674.0,98644.0,0.01880719]
[1740129965573,0.71487717,98674.0,98648.0,0.152054]
[1740129965699,0.71487717,98674.0,98644.0,0.01880719]
[1740129965903,0.71487717,98674.0,98645.0,0.152059]
[1740129966144,0.71487717,98674.0,98643.0,0.0897129]
[1740129966477,0.71487717,98674.0,98643.0,0.2417749]
[1740129966688,0.71487717,98674.0,98643.0,0.0897129]
[1740129966888,0.71487717,98674.0,98645.0,0.152059]
[1740129967086,0.71487717,98674.0,98641.0,0.0471]
[1740129967290,0.71487717,98674.0,98650.0,0.14295704]
[1740129967507,0.56286217,98674.0,98660.0,0.34567204]
[1740129967764,0.71487717,98674.0,98655.0,0.202725]
[1740129968032,0.71487717,98674.0,98660.0,0.14295704]
[1740129968234,0.56286217,98674.0,98660.0,0.14295704]
[1740129968435,0.56286217,98674.0,98663.0,0.202708]
[1740129968642,0.71487717,98674.0,98663.0,0.202708]
[1740129968868,0.71487717,98674.0,98662.0,0.0818]
[1740129969300,0.71487717,98674.0,98662.0,0.233832]
[1740129969489,0.71487717,98674.0,98666.0,0.152026]
[1740129969651,0.71487717,98674.0,98665.0,0.202705]
[1740129969851,0.71487717,98674.0,98662.0,0.0818]
[1740129970073,0.71487717,98674.0,98650.0,0.14295704]
[1740129970286,0.71487717,98674.0,98654.0,0.284527]
[1740129970692,0.71487717,98674.0,98656.0,0.152043]
[1740129970896,0.71487717,98674.0,98641.0,0.1289]
[1740129971554,0.71487717,98674.0,98642.0,0.152064]
[1740129972218,0.72483717,98674.0,98643.0,0.152063]
[1740129972418,0.72483717,98674.0,98641.0,0.1289]
[1740129973562,0.72483717,98674.0,98643.0,0.152062]
[1740129973835,0.73937802,98674.0,98641.0,0.1289]
[1740129973961,0.73937802,98674.0,98644.0,0.152061]
[1740129974172,0.73937802,98674.0,98642.0,0.202751]
[1740129974376,0.73937802,98674.0,98650.0,0.14295704]
[1740129974774,0.73937802,98674.0,98641.0,0.1289]
[1740129975012,0.73937802,98674.0,98644.0,0.152061]
[1740129975237,0.73937802,98674.0,98641.0,0.1289]
[1740129975448,0.73937802,98674.0,98641.0,0.280965]
[1740129975684,0.73937802,98674.0,98642.0,0.152063]
[1740129975884,0.73937802,98674.0,98641.0,0.1289]
[1740129976139,0.72941802,98674.0,98644.0,0.152061]
[1740129976326,0.72941802,98674.0,98638.0,0.202761]
[1740129976327,0.15208,98632.0,98631.0,0.0002]
[1740129976533,0.56238569,98632.0,98631.0,0.0002]
[1740129976734,0.56489562,98632.0,98631.0,0.0002]
[1740129976946,0.56489562,98632.0,98631.0,0.00019987]
[1740129977264,0.71489562,98632.0,98631.0,0.00019987]
[1740129977678,0.72943647,98632.0,98631.0,0.00019987]
[1740129979110,0.72943647,98632.0,98610.0,0.14295704]
[1740129979111,0.152106,98615.0,98610.0,0.14295704]
[1740129979327,0.15211,98613.0,98610.0,0.14295704]
[1740129979538,0.202813,98613.0,98607.0,0.025]
[1740129979740,0.152117,98609.0,98607.0,0.025]
[1740129979940,0.00250518,98612.0,98607.0,0.025]
[1740129980158,0.61311769,98614.0,98607.0,0.025]
[1740129980355,0.00250512,98611.0,98607.0,0.025]
[1740129980557,0.41030569,98614.0,98607.0,0.025]
[1740129980874,0.152113,98611.0,98607.0,0.025]
[1740129981082,0.00250312,98613.0,98607.0,0.025]
[1740129981280,0.202814,98613.0,98607.0,0.025]
[1740129981466,0.152113,98611.0,98607.0,0.025]
[1740129981668,0.00250319,98612.0,98607.0,0.025]
[1740129981965,0.41030569,98614.0,98607.0,0.025]
[1740129982171,0.00250512,98611.0,98607.0,0.025]
[1740129982376,0.41030569,98614.0,98607.0,0.025]
[1740129982566,0.00250506,98610.0,98607.0,0.025]
[1740129982773,0.152112,98612.0,98607.0,0.025]
[1740129982906,0.00271151,98609.0,98607.0,0.025]
[1740129983121,0.41030569,98614.0,98607.0,0.025]
[1740129983322,0.00271145,98608.0,98607.0,0.025]
[1740129983526,0.41030569,98614.0,98607.0,0.025]
[1740129983730,0.002506,98608.0,98607.0,0.025]
[1740129983945,0.56241369,98614.0,98608.0,0.152117]
[1740129984149,0.00250649,98608.0,98607.0,0.025]
[1740129984364,0.41030569,98614.0,98607.0,0.025]
[1740129984789,0.41030569,98614.0,98612.0,0.152109]
[1740129984993,0.152111,98613.0,98607.0,0.025]
[1740129985202,0.41030569,98614.0,98608.0,0.152117]
[1740129985410,0.41030569,98614.0,98607.0,0.025]
[1740129985617,0.41030569,98614.0,98611.0,0.152112]
[1740129986051,0.41030569,98614.0,98607.0,0.025]
[1740129986052,0.00250687,98613.0,98612.0,0.152111]
[1740129986251,0.30766,98614.0,98613.0,0.152109]
[1740129986615,0.31016656,98614.0,98613.0,0.152109]
[1740129987117,0.00250656,98614.0,98613.0,0.152069]
[1740129987256,0.00250656,98614.0,98611.0,1.22759021]
[1740129987257,0.30766,98626.0,98625.0,0.152091]
[1740129987725,0.01666667,98627.0,98623.0,0.20279]
[1740129988030,0.01666667,98627.0,98626.0,0.198989]
[1740129989075,0.01666667,98627.0,98626.0,0.276289]
[1740129989903,0.01666667,98627.0,98626.0,0.28586969]
[1740129990501,0.01666667,98627.0,98626.0,0.28944042]
[1740129990849,0.01666667,98627.0,98626.0,0.29344042]
[1740129991498,0.01666667,98627.0,98626.0,0.28685973]
[1740129991700,0.01666667,98627.0,98626.0,0.29855507]
[1740129991946,0.01766667,98627.0,98626.0,0.29155507]
[1740129992149,0.01766667,98627.0,98626.0,0.29555507]
[1740129992360,0.01666667,98627.0,98626.0,0.29355507]
[1740129992475,0.01766667,98627.0,98626.0,0.29555507]
[1740129993083,0.01666667,98627.0,98626.0,0.29355507]
[1740129993966,0.01666667,98627.0,98626.0,0.28955507]
[1740129994308,0.01666667,98627.0,98626.0,0.28285973]
[1740129994484,0.01666667,98627.0,98626.0,0.27985973]
[1740129994645,0.01666667,98627.0,98626.0,0.2855736]
[1740129994839,0.01666667,98627.0,98626.0,0.2915736]
[1740129995851,0.01766667,98627.0,98626.0,0.30313963]
[1740129996240,0.01666667,98627.0,98626.0,0.29542576]
[1740129996479,0.01766667,98627.0,98626.0,0.29742576]
[1740129996658,0.01660862,98627.0,98626.0,0.29742576]
[1740129996859,0.01660862,98627.0,98626.0,0.28785973]
[1740129997057,0.01660862,98627.0,98626.0,0.29763577]
[1740129997642,0.01746062,98627.0,98626.0,0.29763577]
[1740129997965,0.01746062,98627.0,98626.0,0.28785973]
[1740129998169,0.01746062,98627.0,98626.0,0.29735673]
[1740129998728,0.01746062,98627.0,98626.0,0.28785973]
[1740129999448,0.01746062,98627.0,98626.0,0.01157073]
[1740129999871,0.01746062,98627.0,98626.0,0.16365973]
[1740130000077,0.02016839,98627.0,98626.0,0.16365973]
[1740130000278,0.01746062,98627.0,98626.0,0.16365973]
[1740130004768,0.01746062,98627.0,98624.0,0.202788]
[1740130005199,0.01746062,98627.0,98626.0,0.152089]
[1740130005634,0.01646062,98627.0,98626.0,0.152089]
[1740130005851,0.01746062,98627.0,98626.0,0.152089]
[1740130006286,0.01646062,98627.0,98626.0,0.152089]
[1740130006704,0.01746062,98627.0,98626.0,0.154089]
[1740130007149,0.01846062,98627.0,98626.0,0.154089]
[1740130007321,0.01746062,98627.0,98626.0,0.154089]
[1740130007519,0.01746062,98627.0,98626.0,0.160089]
[1740130007721,0.01846062,98627.0,98626.0,0.008]
[1740130007921,0.152091,98625.0,98624.0,0.01]
[1740130008123,0.02016755,98627.0,98626.0,0.002]
[1740130008293,0.01846062,98627.0,98626.0,0.002]
[1740130008739,0.16954862,98627.0,98626.0,0.002]
[1740130009923,0.202788,98626.0,98613.0,0.202811]
[1740130010292,0.152091,98625.0,98615.0,0.152105]
[1740130010492,0.152094,98623.0,98614.0,0.152108]
[1740130010604,0.202788,98625.0,98610.0,0.15270981]
[1740130010807,0.21897593,98627.0,98615.0,0.152106]
[1740130011036,0.32385193,98627.0,98611.0,0.202817]
[1740130011277,0.10264569,98626.0,98613.0,0.002]
[1740130011483,0.15211,98613.0,98596.0,0.0150646]
[1740130011683,0.0494,98624.0,98600.0,0.14295704]
[1740130011878,0.152112,98611.0,98610.0,0.002]
[1740130012104,0.25475769,98611.0,98610.0,0.002]
[1740130013243,0.25475769,98611.0,98610.0,0.003]
[1740130013720,0.25475769,98611.0,98610.0,0.001]
[1740130014513,0.30546269,98611.0,98600.0,0.14295704]
[1740130014694,0.10264569,98610.0,98596.0,0.0150646]
[1740130014895,0.202833,98604.0,98600.0,0.14295704]
[1740130015265,0.152125,98603.0,98596.0,0.0150646]
[1740130015484,0.10264569,98604.0,98596.0,0.1671996]
[1740130015686,0.10264569,98604.0,98596.0,0.0150646]
[1740130015861,0.00268562,98603.0,98596.0,0.0150646]
[1740130016490,0.00268562,98603.0,98596.0,0.1681996]
[1740130016694,0.00268562,98603.0,98596.0,0.0160646]
[1740130016863,0.00268562,98603.0,98596.0,0.1681996]
[1740130017067,0.00268562,98603.0,98596.0,0.0160646]
[1740130017262,0.00268562,98603.0,98596.0,0.0170646]
[1740130017463,0.10264569,98604.0,98596.0,0.0170646]
[1740130017788,0.00268562,98603.0,98596.0,0.0170646]
[1740130018376,0.00268562,98603.0,98599.0,0.15213]
[1740130018624,0.00268562,98603.0,98596.0,0.0170646]
[1740130018849,0.00268562,98603.0,98601.0,0.152126]
[1740130019053,0.15,98623.0,98596.0,0.0160646]
[1740130019227,0.10264569,98622.0,98610.0,0.14295704]
[1740130019471,0.1053326,98622.0,98610.0,0.14295704]
[1740130019710,0.00268691,98622.0,98621.0,0.152097]
[1740130019840,0.00268691,98622.0,98620.0,0.152098]
[1740130020041,0.30766,98624.0,98619.0,0.2028]
[1740130020272,0.10264569,98623.0,98622.0,0.152094]
[1740130020474,0.10533333,98623.0,98622.0,0.152094]
[1740130020678,0.00268764,98623.0,98622.0,0.152094]
[1740130020918,0.01619193,98627.0,98626.0,0.152089]
[1740130022728,0.01819193,98627.0,98626.0,0.152089]
[1740130023894,0.02119193,98627.0,98623.0,0.202791]
[1740130024100,0.00264968,98626.0,98623.0,0.202791]
[1740130024353,0.00264968,98626.0,98625.0,0.152091]
[1740130024591,0.02119193,98627.0,98625.0,0.152091]
[1740130024877,0.01919193,98627.0,98625.0,0.152091]
[1740130025013,0.02119193,98627.0,98625.0,0.152091]
[1740130025222,0.01819193,98627.0,98625.0,0.152091]
[1740130025423,0.003,98626.0,98625.0,0.152091]
[1740130026050,0.02194769,98626.0,98625.0,0.152091]
[1740130027288,0.003,98626.0,98625.0,0.152091]
[1740130027472,0.01619193,98627.0,98625.0,0.152091]
[1740130027605,0.001,98626.0,98625.0,0.152091]
[1740130027827,0.004,98626.0,98625.0,0.152091]
[1740130029143,0.004,98626.0,98617.0,0.14295704]
[1740130029426,0.004,98626.0,98624.0,0.152092]
[1740130030270,0.003,98626.0,98624.0,0.152092]
[1740130030706,0.001,98626.0,98624.0,0.152092]
[1740130031066,0.004,98626.0,98624.0,0.152092]
[1740130031495,0.004,98626.0,98617.0,0.14295704]
[1740130031702,0.006,98626.0,98617.0,0.14295704]
[1740130031911,0.00265699,98625.0,98617.0,0.14295704]
[1740130032461,0.001,98626.0,98621.0,0.152097]
[1740130032645,0.00265692,98624.0,98620.0,0.152098]
[1740130032794,0.00265699,98625.0,98618.0,0.1521]
[1740130033004,0.152092,98624.0,98613.0,0.152108]
[1740130033212,0.00265692,98624.0,98612.0,0.202813]
[1740130033552,0.00265692,98624.0,98614.0,0.152107]
[1740130033932,0.202794,98622.0,98610.0,0.1528136]
[1740130034140,0.202794,98622.0,98600.0,0.14295704]
[1740130034141,0.152111,98613.0,98600.0,0.14295704]
[1740130034344,0.152106,98616.0,98601.0,0.152128]
[1740130034547,0.00265603,98612.0,98606.0,0.14295704]
[1740130034723,0.152103,98618.0,98606.0,0.14295704]
[1740130034926,0.25474869,98618.0,98606.0,0.14295704]
[1740130035151,0.0026564,98617.0,98606.0,0.14295704]
[1740130035760,0.0026564,98617.0,98607.0,0.152118]
[1740130036019,0.3103164,98617.0,98607.0,0.152118]
[1740130036166,0.3103164,98617.0,98608.0,0.152116]
[1740130036372,0.3103164,98617.0,98607.0,0.152118]
[1740130036723,0.3103164,98617.0,98609.0,0.152115]
[1740130036863,0.3103164,98617.0,98606.0,0.14495704]
[1740130037066,0.3103164,98617.0,98608.0,0.152117]
[1740130037495,0.3103164,98617.0,98607.0,0.002]
[1740130037703,0.3103164,98617.0,98608.0,0.202823]
[1740130037901,0.4624204,98617.0,98608.0,0.152116]
[1740130038126,0.3103164,98617.0,98607.0,0.202825]
[1740130038332,0.3103164,98617.0,98610.0,0.152114]
[1740130038489,0.3113164,98617.0,98611.0,0.152112]
[1740130038689,0.3113164,98617.0,98615.0,0.152105]
[1740130039096,0.003,98617.0,98615.0,0.152105]
[1740130039369,0.003,98617.0,98615.0,0.13181081]
[1740130040736,0.30766,98626.0,98624.0,0.13542533]
[1740130041109,0.30766,98626.0,98624.0,0.152092]
[1740130041308,0.30766,98626.0,98625.0,0.152091]
[1740130041993,0.30766,98626.0,98617.0,0.202804]
[1740130042176,0.31066,98626.0,98616.0,0.14295704]
[1740130042536,0.30766,98626.0,98624.0,0.152092]
[1740130043138,0.10264569,98625.0,98616.0,0.14295704]
[1740130043322,0.152097,98622.0,98615.0,0.154106]
[1740130043529,0.30766,98626.0,98625.0,0.152091]
[1740130043726,0.30766,98626.0,98620.0,0.202798]
[1740130043935,0.31066,98626.0,98616.0,0.14295704]
[1740130044377,0.31166,98626.0,98616.0,0.14295704]
[1740130044577,0.002,98622.0,98616.0,0.14295704]
[1740130044856,0.002,98622.0,98617.0,0.152103]
[1740130045064,0.002,98622.0,98616.0,0.14295704]
[1740130045682,0.00265616,98621.0,98610.0,0.14295704]
[1740130046781,0.00265616,98621.0,98600.0,0.14295704]
[1740130046975,0.202802,98618.0,98610.0,0.001]
[1740130047197,0.152108,98614.0,98610.0,0.001]
[1740130047397,0.08272054,98620.0,98610.0,0.001]
[1740130047398,0.152105,98616.0,98610.0,0.001]
[1740130047620,0.00291977,98613.0,98608.0,0.14295704]
[1740130047826,0.01899232,98615.0,98608.0,0.14295704]
[1740130048028,0.00291909,98612.0,98608.0,0.14295704]
[1740130048290,0.17109932,98615.0,98601.0,0.001]
[1740130048501,0.00291901,98611.0,98603.0,0.152124]
[1740130048709,0.01899232,98615.0,98603.0,0.152124]
[1740130048929,0.0798,98620.0,98608.0,0.001]
[1740130049116,0.00291925,98614.0,98610.0,0.14295704]
[1740130049337,0.00291925,98614.0,98608.0,0.001]
[1740130049543,0.1519506,98617.0,98608.0,0.001]
[1740130049785,0.10264569,98619.0,98608.0,0.001]
[1740130049786,0.00265379,98613.0,98608.0,0.005]
[1740130050251,0.00265372,98612.0,98604.0,0.14295704]
[1740130050671,0.10264569,98619.0,98608.0,0.001]
[1740130050874,0.152102,98618.0,98608.0,0.001]
[1740130051101,0.001,98613.0,98605.0,0.152121]
[1740130051278,0.30766,98617.0,98608.0,0.001]
[1740130051510,0.00265364,98612.0,98608.0,0.001]
[1740130051720,0.30766,98617.0,98608.0,0.001]
[1740130052086,0.00265387,98616.0,98608.0,0.001]
[1740130052695,0.00265387,98616.0,98604.0,0.14295704]
[1740130053119,0.30766,98617.0,98607.0,0.152118]
[1740130053330,0.30766,98617.0,98607.0,0.152117]
[1740130053795,0.30766,98617.0,98605.0,0.202828]
[1740130053796,0.30766,98617.0,98608.0,0.152117]
[1740130053991,0.02099717,98616.0,98605.0,0.202828]
[1740130054141,0.02364916,98616.0,98605.0,0.202828]
[1740130054349,0.02099717,98616.0,98608.0,0.152117]
[1740130054553,0.02099717,98616.0,98609.0,0.152114]
[1740130054748,0.01899717,98616.0,98609.0,0.152114]
[1740130055094,0.00265192,98615.0,98609.0,0.152114]
[1740130055230,0.02164909,98615.0,98607.0,0.152117]
[1740130055433,0.02164909,98615.0,98608.0,0.152117]
[1740130055724,0.02164909,98615.0,98604.0,0.14295704]
[1740130055924,0.02164909,98615.0,98604.0,0.29508004]
[1740130056138,0.02164909,98615.0,98604.0,0.14295704]
[1740130056583,0.01899717,98614.0,98604.0,0.14295704]
[1740130057001,0.152112,98612.0,98604.0,0.14395704]
[1740130057211,0.15211,98613.0,98604.0,0.14395704]
[1740130057392,0.152111,98612.0,98604.0,0.14395704]
[1740130057646,0.04939742,98611.0,98604.0,0.14295704]
[1740130058004,0.00265185,98610.0,98604.0,0.14295704]
[1740130059278,0.152111,98612.0,98604.0,0.14395704]
[1740130059456,0.00291695,98609.0,98604.0,0.14395704]
[1740130059659,0.15211,98613.0,98604.0,0.14295704]
[1740130059862,0.0026517,98608.0,98604.0,0.14295704]
[1740130060160,0.001,98610.0,98598.0,0.29508904]
[1740130060365,0.00265163,98607.0,98598.0,0.14295704]
[1740130060720,0.0190042,98609.0,98598.0,0.14295704]
[1740130061105,0.0046517,98608.0,98598.0,0.29508904]
[1740130061306,0.0046517,98608.0,98598.0,0.14295704]
[1740130061549,0.0046517,98608.0,98598.0,0.29508804]
[1740130061723,0.0046517,98608.0,98598.0,0.14295704]
[1740130062137,0.0046517,98608.0,98598.0,0.29508904]
[1740130062339,0.04941357,98607.0,98598.0,0.29508904]
[1740130062558,0.04941357,98607.0,98598.0,0.14395704]
[1740130062763,0.05041357,98607.0,98598.0,0.14395704]
[1740130063059,0.05041357,98607.0,98598.0,0.14295704]
[1740130063266,0.04941357,98607.0,98598.0,0.14295704]
[1740130063718,0.04941357,98606.0,98598.0,0.14295704]
[1740130064141,0.04941357,98606.0,98598.0,0.14395704]
[1740130064356,0.04941357,98606.0,98598.0,0.14192304]
[1740130065129,0.15213,98600.0,98598.0,0.001]
[1740130065332,0.15205926,98605.0,98596.0,0.0150646]
[1740130065333,0.00291435,98599.0,98596.0,0.0150646]
[1740130065732,0.21487185,98599.0,98598.0,0.001]
[1740130065946,0.31751754,98599.0,98598.0,0.001]
[1740130066172,0.152134,98597.0,98596.0,0.0150646]
[1740130066583,0.26932054,98597.0,98596.0,0.0190646]
[1740130067005,0.26932054,98597.0,98596.0,0.0150646]
[1740130067006,0.80608054,98597.0,98596.0,0.0150646]
[1740130067205,0.85549411,98597.0,98596.0,0.0150646]
[1740130067366,0.86449411,98597.0,98596.0,0.0150646]
[1740130068518,0.86049411,98597.0,98596.0,0.0150646]
[1740130069094,0.86649411,98597.0,98596.0,0.0150646]
[1740130069276,0.85549411,98597.0,98596.0,0.0150646]
[1740130069702,0.86949411,98597.0,98596.0,0.0160646]
[1740130069930,0.86249411,98597.0,98596.0,0.0150646]
[1740130070206,0.86249411,98597.0,98596.0,0.0160646]
[1740130070207,0.86949411,98597.0,98596.0,0.0160646]
[1740130071946,0.82008054,98597.0,98596.0,0.0160646]
[1740130075789,0.82272222,98597.0,98596.0,0.0160646]
[1740130080456,0.8443846,98597.0,98596.0,0.0160646]
[1740130080871,0.82272222,98597.0,98596.0,0.0160646]
[1740130081187,0.90220074,98597.0,98596.0,0.0160646]
[1740130082657,0.15,98596.0,98591.0,1e-08]
[1740130082864,0.52938769,98592.0,98591.0,1e-08]
[1740130083070,0.83704769,98592.0,98591.0,1e-08]
[1740130083269,0.85511924,98592.0,98591.0,1e-08]
[1740130083451,0.83965412,98592.0,98591.0,1e-08]
[1740130083868,0.87120909,98592.0,98591.0,1e-08]
[1740130084047,0.92044661,98592.0,98591.0,1e-08]
[1740130084423,0.152203,98552.0,98551.0,0.0002]
[1740130084827,0.15480281,98552.0,98551.0,0.0002]
[1740130085033,0.00259981,98552.0,98551.0,0.0002]
[1740130085496,0.152203,98552.0,98551.0,0.0002]
[1740130085698,0.15480274,98552.0,98551.0,0.0002]
[1740130085905,0.00359974,98552.0,98551.0,0.0002]
[1740130086531,0.00459974,98552.0,98551.0,0.0062]
[1740130087381,0.00259974,98552.0,98551.0,0.0002]
[1740130087535,0.05282831,98552.0,98551.0,0.0002]
[1740130087753,0.05282831,98552.0,98551.0,0.0012]
[1740130088142,0.155474,98552.0,98551.0,0.0012]
[1740130089186,0.305474,98552.0,98551.0,0.0012]
[1740130089400,0.62583335,98552.0,98551.0,0.0012]
[1740130089814,0.70503335,98552.0,98551.0,0.0012]
[1740130090225,0.70820819,98552.0,98551.0,0.0012]
[1740130090465,0.75790819,98552.0,98551.0,0.0012]
[1740130090670,0.74520884,98552.0,98551.0,0.0012]
[1740130091160,0.74520884,98552.0,98551.0,0.0002]
[1740130091542,0.75020884,98552.0,98551.0,0.0002]
[1740130091972,0.747034,98552.0,98551.0,0.0002]
[1740130092806,0.753034,98552.0,98551.0,0.0002]
[1740130093416,0.81044429,98552.0,98551.0,1e-06]
[1740130093713,0.70380543,98552.0,98551.0,1e-06]
[1740130095068,0.152264,98513.0,98505.0,0.076]
[1740130095271,0.00234593,98512.0,98505.0,0.076]
[1740130095511,0.00234593,98512.0,98505.0,0.228275]
[1740130095712,0.25725662,98512.0,98500.0,4.6617726]
[1740130096499,0.25825662,98512.0,98500.0,4.6617726]
[1740130096727,0.25725662,98512.0,98500.0,4.6617726]
[1740130096979,0.40725662,98512.0,98500.0,4.6617726]
[1740130097110,0.71891662,98512.0,98511.0,0.0012]
[1740130097505,0.71891662,98512.0,98511.0,0.0002]
[1740130097708,0.72491662,98512.0,98511.0,0.0002]
[1740130097952,0.72991662,98512.0,98511.0,0.0002]
[1740130098579,0.7488091,98512.0,98511.0,0.0002]
[1740130098989,0.74646317,98512.0,98511.0,0.0002]
[1740130099196,0.74877743,98512.0,98511.0,0.0002]
[1740130099861,0.77900337,98512.0,98511.0,0.0002]
[1740130104281,0.47673837,98512.0,98511.0,0.0002]
[1740130104468,0.37409268,98512.0,98511.0,0.0002]
[1740130105264,0.36909268,98512.0,98511.0,0.0002]